bitfinex/quotes_ETHUSD_20250616
["timestamp","ask_amount","ask_price","bid_price","bid_amount"]
[1750039689369,0.03421345,2576.3,2575.4,0.03881803]
[1750039689658,0.03421345,2576.3,2575.4,1.76210712]
[1750039690018,0.03421345,2576.3,2575.5,0.03881819]
[1750039690235,0.03421345,2576.3,2575.4,1.76210712]
[1750039690800,0.03421345,2576.3,2575.5,0.03881819]
[1750039691043,0.03421345,2576.3,2575.3,4.65173133]
[1750039691044,0.03421345,2576.3,2575.3,10.7687]
[1750039691197,0.31089479,2576.3,2575.5,0.03881819]
[1750039691423,0.1936,2575.8,2575.5,0.03881819]
[1750039691636,0.1936,2575.8,2575.4,0.1936]
[1750039693510,0.7981,2575.8,2575.0,10.7513]
[1750039693709,0.1936,2575.6,2575.1,1.30782572]
[1750039694211,0.1936,2575.6,2575.2,0.32416224]
[1750039695570,0.7932,2576.1,2575.4,10.0]
[1750039695876,0.1936,2575.9,2575.5,7.12641832]
[1750039696032,0.1936,2575.9,2575.6,0.71264183]
[1750039696230,2.7936,2576.3,2575.7,0.03882132]
[1750039696446,0.1936,2576.1,2575.5,7.892]
[1750039696764,0.1936,2576.1,2575.6,0.03881841]
[1750039697067,0.1936,2576.1,2575.5,7.892]
[1750039697277,0.1936,2576.1,2575.6,0.8280183]
[1750039697852,0.1936,2576.1,2575.6,4.71050043]
[1750039698024,1.974,2576.2,2575.8,0.1936]
[1750039699641,0.1936,2575.8,2575.3,0.1936]
[1750039699843,0.82981345,2576.1,2575.8,0.5]
[1750039700045,0.7956,2575.9,2575.8,0.5]
[1750039700325,0.82981345,2575.9,2575.8,0.5]
[1750039701259,0.82981345,2575.9,2575.8,0.37892783]
[1750039701477,30.0,2575.7,2574.5,1.26207104]
[1750039701692,0.7764,2575.5,2574.5,1.26207104]
[1750039701980,0.7764,2575.3,2574.5,1.26207104]
[1750039702147,0.03421345,2575.2,2574.5,1.26207104]
[1750039702542,1.974,2575.1,2574.5,1.26207104]
[1750039702771,0.8166,2574.9,2574.5,1.26207104]
[1750039702950,0.03421345,2574.8,2574.5,1.26207104]
[1750039703481,2.1676,2574.8,2574.5,1.26207104]
[1750039704062,0.03421345,2574.7,2574.5,1.26207104]
[1750039705094,1.974,2575.0,2574.5,1.26207104]
[1750039705238,2.1676,2575.0,2574.5,1.45567104]
[1750039705850,0.1936,2575.0,2574.5,1.45567104]
[1750039706099,1.974,2575.2,2574.6,4.1499445]
[1750039706258,1.974,2575.2,2574.8,0.1936]
[1750039706457,1.974,2575.2,2574.5,11.26207104]
[1750039706641,0.1936,2575.0,2574.5,1.58632142]
[1750039706841,0.7939,2574.9,2574.5,1.58632142]
[1750039707079,0.03421345,2574.8,2574.5,0.32425038]
[1750039707750,0.7939,2574.7,2573.3,0.7525]
[1750039707973,2.00821345,2574.6,2573.4,0.80330235]
[1750039708493,0.03421345,2574.6,2573.4,0.80330235]
[1750039708649,1.974,2574.5,2573.6,0.7525]
[1750039708845,0.03421345,2574.4,2573.6,0.7525]
[1750039709764,0.03421345,2574.4,2573.6,1.17560449]
[1750039709997,1.971,2574.3,2573.7,0.03884646]
[1750039713579,1.971,2574.7,2573.9,4.66271155]
[1750039713789,0.03421345,2574.6,2573.9,0.7776]
[1750039714618,0.7918,2574.5,2573.6,0.38425334]
[1750039714839,0.03421345,2574.4,2573.5,0.7776]
[1750039715202,0.03421345,2574.4,2573.6,0.03885146]
[1750039715598,0.03421345,2574.4,2573.5,0.7776]
[1750039715944,2.7922,2574.3,2573.6,0.03885146]
[1750039716114,7.442,2575.4,2573.6,0.86335146]
[1750039716115,1.971,2574.5,2573.6,0.86335146]
[1750039716317,2.28443345,2574.4,2573.6,0.8245]
[1750039716708,0.1936,2573.9,2573.6,0.8245]
[1750039716913,0.1936,2573.9,2573.6,0.86335116]
[1750039717352,0.1936,2573.9,2573.6,0.8245]
[1750039717737,0.1936,2573.9,2573.5,0.57484581]
[1750039718065,0.8212,2574.0,2573.5,0.38124581]
[1750039718279,0.1936,2573.6,2572.9,0.8245]
[1750039718431,2.00521345,2573.9,2572.9,1.0181]
[1750039718761,0.1936,2573.4,2572.9,1.0181]
[1750039719060,0.8212,2573.4,2572.9,0.39058244]
[1750039719363,0.1936,2573.1,2572.6,1.0181]
[1750039719571,0.1936,2573.1,2572.7,0.03886477]
[1750039719959,0.1936,2573.1,2572.6,1.0181]
[1750039720276,0.1936,2572.8,2572.6,0.38171264]
[1750039720449,0.1936,2572.8,2572.4,0.1936]
[1750039720636,0.1936,2572.8,2572.5,0.0388681]
[1750039721570,0.1936,2573.1,2572.6,0.954]
[1750039721878,0.1936,2573.1,2572.7,0.03886478]
[1750039722116,1.971,2573.3,2572.6,0.79926532]
[1750039722396,0.1936,2572.9,2572.6,1.18502383]
[1750039722555,0.1936,2572.9,2572.6,0.42462383]
[1750039722755,0.1936,2572.9,2572.6,0.38575851]
[1750039722956,0.1936,2572.9,2572.5,0.23246675]
[1750039723260,0.1936,2572.9,2572.5,0.1936]
[1750039723981,0.1936,2572.9,2572.6,5.64338955]
[1750039724162,0.8212,2573.4,2572.6,5.64338955]
[1750039724163,0.1936,2573.1,2572.7,0.81616258]
[1750039725187,0.1936,2573.1,2572.7,0.23246362]
[1750039726306,1.972,2573.3,2572.6,0.43121421]
[1750039726460,0.1936,2572.9,2572.6,0.43121421]
[1750039727092,0.1936,2572.9,2572.6,0.39235067]
[1750039727293,0.1936,2572.9,2572.5,0.23246657]
[1750039727895,1.972,2573.1,2572.8,5.64338955]
[1750039728284,1.972,2573.1,2572.9,0.79186334]
[1750039729688,1.972,2573.1,2572.8,0.1936]
[1750039730492,1.972,2573.1,2572.7,0.758]
[1750039730827,0.1936,2572.9,2572.7,0.758]
[1750039731026,0.1936,2572.9,2572.7,1.30015507]
[1750039731234,0.1936,2572.9,2572.5,12.24355066]
[1750039731396,0.1936,2572.9,2572.6,0.03886673]
[1750039731993,11.751,2574.3,2572.5,12.24355066]
[1750039731994,0.796,2574.6,2573.0,0.55]
[1750039732199,0.796,2574.6,2574.1,5.64338955]
[1750039732508,0.796,2574.6,2573.8,6.892]
[1750039733015,1.972,2574.5,2573.8,6.892]
[1750039733201,2.2488,2574.5,2574.0,7.18212493]
[1750039733645,0.796,2574.6,2574.0,7.18212493]
[1750039733938,0.796,2574.6,2574.3,7.18212493]
[1750039733939,1.972,2574.5,2574.3,7.18212493]
[1750039734152,40.0,2575.8,2574.3,7.18212493]
[1750039734314,0.7539,2575.0,2574.7,7.18212493]
[1750039734514,2.7259,2575.0,2574.7,7.18212493]
[1750039734735,2.99849,2575.0,2574.7,7.18212493]
[1750039735036,2.24459,2575.0,2574.4,0.03884413]
[1750039735238,1.972,2575.0,2574.4,0.03884413]
[1750039736867,0.828,2575.3,2574.4,0.03884413]
[1750039737075,1.972,2575.0,2574.3,10.0]
[1750039737283,1.972,2575.0,2574.2,16.892]
[1750039737284,1.972,2575.0,2574.4,0.03883931]
[1750039738332,1.972,2575.0,2574.3,0.0388393]
[1750039738564,2.1692,2575.0,2574.3,0.0388393]
[1750039738966,1.971,2574.9,2574.3,0.0388393]
[1750039739168,1.971,2575.2,2574.8,5.63877954]
[1750039740393,1.971,2575.2,2574.4,6.889]
[1750039740530,4.3362,2576.3,2575.2,10.0]
[1750039740531,0.7879,2575.9,2575.2,10.0]
[1750039740734,1.968,2576.3,2575.7,5.63877954]
[1750039740735,0.7879,2576.2,2575.7,5.63877954]
[1750039740972,0.27559,2576.2,2575.8,0.03882146]
[1750039741268,0.27559,2576.2,2575.7,5.63877954]
[1750039741977,0.7866,2576.5,2576.1,5.63877954]
[1750039742183,1.967,2576.8,2576.2,0.03881415]
[1750039742393,0.1936,2576.6,2576.2,0.03881415]
[1750039742593,0.1936,2576.7,2576.3,0.1936]
[1750039742803,0.2036,2576.9,2576.6,10.0]
[1750039743087,0.2036,2576.9,2576.7,0.03880485]
[1750039743374,0.01,2576.9,2576.8,0.1936]
[1750039743533,0.01,2576.9,2576.8,4.07438236]
[1750039743738,0.7957,2577.9,2576.8,4.07438236]
[1750039743739,0.1936,2577.5,2576.9,0.7642]
[1750039743937,0.00958034,2579.8,2578.1,0.55]
[1750039744156,0.00958034,2579.8,2577.4,0.5]
[1750039744157,0.00958034,2579.8,2578.8,0.7642]
[1750039744361,0.00958034,2579.8,2579.3,15.63877954]
[1750039744702,0.00958034,2579.8,2579.3,24.70275648]
[1750039744905,0.00958034,2579.8,2579.7,3.87641973]
[1750039745111,0.01,2580.9,2579.8,0.8316]
[1750039745323,30.0,2582.3,2580.7,5.63877954]
[1750039745625,30.0,2582.3,2580.8,7.03973963]
[1750039745803,1.08880038,2582.2,2580.4,5.63877954]
[1750039746112,1.08880038,2582.2,2579.8,0.8316]
[1750039746113,30.0,2582.3,2580.8,5.63877954]
[1750039746266,30.0,2582.7,2580.9,0.03874485]
[1750039746467,30.0,2582.7,2579.6,15.07448128]
[1750039746468,5.63877954,2582.4,2580.0,6.42277954]
[1750039746663,5.63877954,2582.4,2579.6,11.198]
[1750039746664,15.63877954,2582.0,2579.8,5.63877954]
[1750039746867,10.0,2581.7,2579.9,7.009]
[1750039747111,10.0,2581.3,2580.0,5.67753643]
[1750039747265,1.966,2581.4,2580.1,7.002]
[1750039747695,0.55,2581.3,2580.2,7.002]
[1750039747899,2.516,2581.3,2580.3,6.999]
[1750039748310,0.8021,2581.2,2580.0,0.03875492]
[1750039748479,0.33181,2581.1,2579.9,5.63877954]
[1750039748679,0.33181,2581.1,2580.0,7.03475581]
[1750039748896,0.33181,2581.1,2580.0,0.03875581]
[1750039749097,0.33181,2581.1,2579.9,5.63877954]
[1750039749482,0.33181,2581.1,2580.0,7.04275566]
[1750039749809,0.33181,2581.1,2580.1,7.004]
[1750039750010,0.33181,2581.1,2579.9,5.63877954]
[1750039750815,0.33181,2581.1,2579.6,6.42277954]
[1750039751121,18.0,2581.0,2579.7,8.9967561]
[1750039751323,1.833181,2580.9,2579.7,8.958]
[1750039751470,30.0,2580.9,2579.8,6.989]
[1750039751676,0.8009,2580.8,2579.7,6.989]
[1750039751987,0.8009,2580.8,2579.8,6.989]
[1750039752188,0.8009,2580.8,2579.5,5.63877954]
[1750039752402,30.0,2580.7,2579.1,6.41167954]
[1750039752602,3.08009,2580.6,2579.1,6.79967145]
[1750039752791,30.0,2580.5,2579.2,0.35047838]
[1750039752987,0.7932,2580.4,2579.0,5.63877954]
[1750039753300,1.964,2580.3,2578.8,7.64154898]
[1750039753487,1.964,2580.3,2578.9,6.981]
[1750039753685,0.27572,2580.2,2579.0,0.03877004]
[1750039753885,0.1936,2579.5,2579.2,5.63877954]
[1750039754100,0.1936,2579.5,2579.3,0.03876612]
[1750039754412,0.1936,2579.7,2579.3,0.03876612]
[1750039755012,0.1936,2579.8,2579.6,5.63877954]
[1750039755211,0.1936,2579.8,2579.4,0.1936]
[1750039755414,0.1936,2579.8,2579.5,7.33240354]
[1750039755710,0.7932,2580.4,2579.5,7.02276295]
[1750039755927,0.1936,2579.8,2579.5,7.02276295]
[1750039756119,0.7932,2580.4,2579.5,7.02276295]
[1750039756274,0.1936,2580.0,2579.6,6.979]
[1750039756713,0.1936,2580.0,2579.7,6.02780963]
[1750039757014,0.1936,2580.3,2579.8,0.1936]
[1750039757176,0.1936,2580.3,2579.9,0.03875572]
[1750039757879,0.1936,2580.3,2579.9,6.978]
[1750039758292,0.1936,2580.0,2579.9,6.978]
[1750039758490,0.1936,2580.0,2579.6,6.97]
[1750039758710,0.7676,2580.8,2579.5,5.63877954]
[1750039758910,0.1936,2579.8,2579.5,12.60877954]
[1750039760023,0.1936,2579.8,2579.5,12.60477954]
[1750039760190,0.1936,2579.8,2579.5,6.966]
[1750039761339,1.964,2580.5,2579.4,6.958]
[1750039761540,0.1936,2579.7,2579.4,6.958]
[1750039761832,0.1936,2579.7,2579.4,6.955]
[1750039763123,0.1964,2580.4,2579.5,5.67754498]
[1750039763414,0.1936,2579.8,2579.5,5.63877954]
[1750039763579,0.1936,2579.7,2579.5,5.63877954]
[1750039764315,0.1936,2579.7,2579.4,6.955]
[1750039764726,0.1936,2579.7,2579.3,6.938]
[1750039764882,0.1936,2579.7,2579.2,0.1936]
[1750039765085,0.7988,2580.0,2579.0,5.63877954]
[1750039765280,0.1936,2579.5,2579.1,6.97376847]
[1750039766143,0.1936,2579.5,2579.0,5.83237954]
[1750039766311,0.1936,2579.5,2579.1,6.934]
[1750039766992,0.1936,2579.5,2579.1,13.32899969]
[1750039767194,0.7988,2580.0,2579.2,0.03876976]
[1750039767398,0.7988,2580.0,2579.2,6.98676976]
[1750039767625,0.7988,2580.0,2579.2,6.948]
[1750039767840,30.0,2579.9,2579.0,0.1936]
[1750039768007,3.0,2579.8,2579.0,0.1936]
[1750039768207,2.7927,2579.7,2578.5,6.99177657]
[1750039768546,0.8287,2579.7,2579.0,5.63877954]
[1750039769042,0.8287,2579.7,2579.1,6.99377095]
[1750039769246,0.8287,2579.7,2579.1,6.955]
[1750039769942,0.8287,2579.7,2579.1,6.99376897]
[1750039770110,0.8287,2579.7,2579.1,8.29532916]
[1750039770310,0.8287,2579.7,2579.1,8.25656019]
[1750039770648,0.7588,2580.1,2579.4,5.63877954]
[1750039771210,0.7588,2580.1,2579.5,0.03876277]
[1750039771616,0.7588,2580.1,2579.4,5.63877954]
[1750039771830,1.03558,2580.1,2579.5,6.945]
[1750039772026,0.7588,2580.1,2579.5,12.62254502]
[1750039772207,0.7588,2580.1,2579.5,12.58377954]
[1750039772716,0.7588,2580.1,2579.6,0.03876053]
[1750039773345,0.7588,2580.1,2579.5,12.58377954]
[1750039773501,0.7588,2580.1,2579.6,0.03876049]
[1750039774196,0.7764,2581.2,2579.9,5.63877954]
[1750039774399,0.7764,2581.0,2579.9,5.63877954]
[1750039774701,2.009,2580.9,2579.9,5.63877954]
[1750039774903,0.27854,2580.8,2579.9,5.63877954]
[1750039775102,0.7764,2581.0,2579.9,5.63877954]
[1750039775312,2.009,2580.9,2580.0,6.932]
[1750039775739,2.009,2580.9,2580.0,6.9707555]
[1750039777205,0.1936,2580.3,2580.0,6.9707555]
[1750039777923,2.009,2580.9,2580.0,6.919]
[1750039778241,0.7764,2581.0,2580.2,0.1936]
[1750039778410,0.1936,2580.7,2580.3,0.03874962]
[1750039778608,0.1936,2580.7,2580.3,0.03874958]
[1750039778849,0.7764,2581.0,2580.3,0.03874958]
[1750039779008,0.1936,2581.0,2580.5,0.1936]
[1750039779205,0.1936,2581.0,2580.6,6.95474587]
[1750039780015,0.1936,2581.0,2580.6,6.916]
[1750039780452,0.1936,2581.0,2580.6,6.95474428]
[1750039780757,0.7693,2581.4,2580.4,0.7782]
[1750039780966,0.1936,2580.8,2580.4,0.1936]
[1750039781127,0.1936,2580.8,2580.4,7.31430405]
[1750039781466,0.9741,2580.4,2580.0,0.38108547]
[1750039781613,0.7805,2580.4,2579.9,6.917]
[1750039781815,0.1936,2579.9,2579.5,7.1106]
[1750039782047,0.1936,2579.9,2579.6,0.71106]
[1750039782562,0.7805,2580.4,2579.6,0.71106]
[1750039782563,0.1936,2580.1,2579.7,0.23236211]
[1750039783122,2.009,2580.6,2579.7,0.03876211]
[1750039783411,0.7805,2581.1,2580.0,0.7563]
[1750039784044,0.7805,2581.1,2580.0,6.932]
[1750039784547,2.009,2581.0,2580.0,6.932]
[1750039785251,12.2947,2581.2,2580.0,6.932]
[1750039785252,0.7805,2580.9,2580.1,5.63877954]
[1750039785409,0.7805,2580.9,2579.7,7.8959191]
[1750039785613,0.7805,2580.9,2579.8,6.937]
[1750039785849,0.7805,2580.9,2579.9,6.937]
[1750039787452,2.009,2580.8,2580.0,0.03875817]
[1750039787650,2.009,2580.7,2580.0,0.03875817]
[1750039787850,2.009,2580.7,2580.0,1.30021194]
[1750039788015,0.7805,2580.9,2580.2,5.63877954]
[1750039788643,0.7805,2580.9,2580.3,0.03874855]
[1750039789614,0.7805,2580.9,2580.1,1.91594507]
[1750039789838,0.7805,2580.9,2580.2,0.03874861]
[1750039790278,0.7805,2580.9,2580.3,0.2098554]
[1750039790423,1.05945,2580.9,2579.8,0.8079]
[1750039790759,1.05945,2580.9,2579.9,0.03875537]
[1750039790760,0.7753,2580.8,2579.9,0.03875537]
[1750039790927,0.7753,2580.8,2579.7,0.3832094]
[1750039791125,0.7753,2580.8,2579.7,0.91630749]
[1750039791557,2.009,2580.7,2579.8,0.20997201]
[1750039791855,2.009,2580.7,2579.9,0.21000959]
[1750039792051,2.009,2580.7,2579.7,0.03875991]
[1750039792252,2.009,2580.7,2579.8,0.21000828]
[1750039792465,0.27843,2580.6,2579.7,0.42829568]
[1750039792657,0.27843,2580.6,2579.7,0.03875991]
[1750039792827,0.7753,2580.8,2579.7,0.03875991]
[1750039793032,2.009,2580.7,2579.6,6.922]
[1750039793232,0.1936,2580.2,2579.7,0.1936]
[1750039793865,0.1936,2580.2,2579.7,0.23235902]
[1750039794582,0.1936,2580.2,2579.8,0.21002501]
[1750039794786,0.1936,2580.2,2579.7,0.61921664]
[1750039795081,0.1936,2580.2,2579.7,0.98648068]
[1750039795984,0.1936,2580.2,2579.8,0.21003128]
[1750039796187,0.1936,2579.8,2579.3,1.30164507]
[1750039796394,0.1936,2579.8,2579.7,0.38190993]
[1750039796536,0.805,2580.1,2579.5,0.03876203]
[1750039796736,0.1936,2580.0,2579.5,1.62008069]
[1750039797384,0.1936,2580.0,2579.5,1.42648069]
[1750039797590,1.0062,2580.4,2579.9,0.1936]
[1750039797900,0.1936,2580.4,2579.9,0.1936]
[1750039798074,1.0062,2580.7,2580.2,0.1936]
[1750039798273,1.0062,2580.7,2579.7,1.47739343]
[1750039798274,1.11412,2580.7,2579.7,1.50257145]
[1750039798492,0.1936,2580.2,2579.8,0.2101319]
[1750039798691,0.1936,2580.2,2579.7,0.58812638]
[1750039799212,0.1936,2580.2,2579.8,0.0387578]
[1750039799554,0.1936,2580.2,2579.9,0.21011319]
[1750039799878,0.1936,2580.3,2580.0,0.03875503]
[1750039800296,0.8126,2580.7,2580.1,0.21014738]
[1750039800297,2.8216,2580.7,2580.1,0.21014738]
[1750039800498,0.1936,2580.6,2580.2,0.038751]
[1750039800815,10.0,2581.5,2580.6,0.1936]
[1750039800816,2.1656,2581.1,2580.6,0.1936]
[1750039800999,0.7816,2581.5,2580.7,0.03874547]
[1750039801165,0.7816,2581.5,2580.7,11.81456926]
[1750039801366,0.7816,2581.5,2580.6,0.1936]
[1750039802080,0.7816,2581.5,2580.7,0.03874487]
[1750039802285,0.7816,2581.5,2580.7,5.67752441]
[1750039802737,0.7816,2581.5,2580.8,0.20874488]
[1750039803014,0.7816,2581.5,2580.9,0.0387396]
[1750039803224,0.1082394,2581.6,2581.0,0.7699]
[1750039803523,0.1082394,2581.6,2581.1,12.57551914]
[1750039803822,0.1082394,2581.6,2581.1,12.53677954]
[1750039804311,0.1082394,2581.6,2580.8,1.1143608]
[1750039804480,0.7692,2581.5,2580.9,0.20865343]
[1750039804680,1.971,2581.4,2580.6,0.7699]
[1750039805007,2.25584394,2581.4,2580.7,0.2087165]
[1750039805209,0.8303,2581.3,2580.3,6.893]
[1750039805394,0.8303,2581.3,2580.0,0.8166]
[1750039805597,0.8303,2581.3,2580.1,0.24760771]
[1750039805908,0.8303,2581.3,2580.1,5.67753173]
[1750039806211,1.971,2581.2,2580.2,1.64453849]
[1750039806378,0.7733,2581.1,2580.1,5.63877954]
[1750039806578,0.7733,2581.1,2580.2,0.03875241]
[1750039806779,0.7733,2581.1,2580.3,0.20990612]
[1750039806980,1.971,2581.0,2580.2,0.03875241]
[1750039807707,1.971,2580.9,2580.2,0.03875241]
[1750039807906,1.971,2580.9,2580.3,0.20990481]
[1750039808111,1.971,2580.9,2579.9,0.0387524]
[1750039808431,10.0,2578.8,2577.0,3.69153652]
[1750039808575,10.0,2578.8,2576.9,0.7809]
[1750039808576,40.55,2578.6,2576.9,0.7809]
[1750039808775,18.9645321,2578.7,2576.9,0.7809]
[1750039808776,40.0,2578.4,2577.0,5.63877954]
[1750039808972,0.03875256,2578.3,2577.0,8.16520984]
[1750039809192,2.15075256,2578.3,2577.1,0.24939426]
[1750039809500,2.5712,2578.2,2577.1,7.16479784]
[1750039809704,0.03875256,2578.1,2577.1,0.03879784]
[1750039809902,0.03875256,2578.1,2577.2,7.34058885]
[1750039810099,0.4592,2578.6,2577.4,5.63877954]
[1750039810311,0.4592,2578.6,2577.8,5.63877954]
[1750039810620,0.4592,2578.6,2577.9,0.21045887]
[1750039810787,0.03875256,2578.5,2577.7,7.13]
[1750039810979,0.1936,2578.3,2577.8,7.36338768]
[1750039811321,0.4592,2578.6,2577.8,7.16978768]
[1750039811613,0.1936,2578.4,2577.9,0.1936]
[1750039811817,0.1936,2578.4,2578.0,0.03878395]
[1750039813016,0.4592,2578.6,2578.0,0.03878395]
[1750039813224,0.6528,2578.6,2578.2,0.1936]
[1750039813377,0.6528,2578.6,2577.7,0.79109]
[1750039813378,0.4592,2578.6,2577.7,10.79109]
[1750039813579,0.03875256,2578.5,2577.7,7.90809]
[1750039813917,0.1936,2578.2,2577.8,0.03878758]
[1750039814779,0.1936,2578.2,2577.1,0.7939]
[1750039814987,0.1936,2578.2,2577.4,7.108]
[1750039815212,0.1936,2578.2,2577.5,11.31346625]
[1750039815407,0.1936,2578.2,2577.6,0.03878564]
[1750039815895,0.49795256,2578.6,2577.6,0.03878564]
[1750039816205,0.4592,2578.6,2577.7,5.63877954]
[1750039816405,0.4592,2578.6,2577.8,0.80158081]
[1750039816610,0.4592,2578.6,2577.9,0.64403603]
[1750039816922,0.03875256,2578.5,2577.9,0.64403603]
[1750039817238,0.03875256,2578.5,2577.8,7.105]
[1750039819228,0.4592,2578.3,2577.5,1.27467795]
[1750039819428,2.113,2578.2,2577.5,1.27467795]
[1750039819632,2.113,2578.2,2577.6,0.03879151]
[1750039819796,0.03875256,2578.1,2577.5,1.27467795]
[1750039820240,2.113,2578.2,2577.6,0.0387915]
[1750039821040,0.03875256,2578.1,2577.2,7.078]
[1750039821342,2.113,2578.1,2577.3,0.75047064]
[1750039821743,0.4592,2578.3,2577.3,0.75047064]
[1750039821744,0.21852028,2578.2,2577.3,0.75047064]
[1750039821931,2.114,2578.1,2577.3,0.75047064]
[1750039822136,0.03875256,2578.0,2577.3,0.71167915]
[1750039822444,0.03875256,2578.0,2577.4,0.03879298]
[1750039822858,0.03875256,2578.0,2577.2,7.072]
[1750039824344,2.114,2578.1,2577.3,0.03879329]
[1750039824549,0.02939956,2578.0,2577.2,7.072]
[1750039824745,0.1936,2577.8,2577.3,0.1936]
[1750039826130,0.1936,2577.8,2577.4,0.0387942]
[1750039826517,0.1936,2577.8,2577.3,0.1936]
[1750039827246,0.1936,2577.8,2577.4,0.0387942]
[1750039829148,0.1936,2577.8,2577.3,0.1936]
[1750039830459,0.1936,2577.8,2577.4,0.0387942]
[1750039830761,0.1936,2577.8,2577.3,0.391956]
[1750039831923,0.4592,2578.3,2577.7,5.63877954]
[1750039832133,0.1936,2578.2,2577.8,7.05578707]
[1750039833641,0.4592,2578.3,2577.8,0.76372578]
[1750039833842,0.4592,2578.3,2577.9,7.1976]
[1750039834051,0.1936,2578.4,2578.0,0.03878443]
[1750039834216,0.4592,2578.6,2578.0,0.03878443]
[1750039834416,0.6528,2578.6,2578.2,0.1936]
[1750039834614,0.2184641,2578.5,2578.2,0.1936]
[1750039834840,0.6528,2578.6,2578.2,0.1936]
[1750039835459,0.21848182,2578.5,2577.8,7.71893871]
[1750039835752,0.02939956,2578.5,2577.8,6.994]
[1750039835981,0.1936,2578.0,2577.8,6.994]
[1750039836168,0.1936,2578.0,2577.7,6.992]
[1750039837081,0.4592,2578.6,2577.8,0.03878998]
[1750039837082,0.1936,2578.1,2577.8,0.03878998]
[1750039837247,0.4592,2578.0,2577.7,7.1856]
[1750039837441,0.4592,2578.0,2577.7,0.1936]
[1750039838278,0.6528,2578.0,2577.5,0.1936]
[1750039839381,0.02939956,2577.9,2577.4,0.03879097]
[1750039839563,0.1936,2577.7,2577.4,0.03879097]
[1750039839761,0.1936,2577.7,2577.4,2.04058167]
[1750039839985,0.1936,2577.9,2577.4,2.23418167]
[1750039840286,0.4592,2578.0,2577.4,2.04058167]
[1750039840449,0.6528,2578.0,2577.5,0.1936]
[1750039840649,0.6528,2578.0,2577.6,0.03879002]
[1750039842472,0.4592,2578.3,2577.6,0.03879002]
[1750039842672,0.4592,2578.3,2577.6,0.80672605]
[1750039842889,0.4592,2578.3,2577.9,0.1936]
[1750039843406,0.1936,2578.4,2577.9,0.1936]
[1750039843962,0.1936,2578.4,2578.0,0.03878429]
[1750039844169,0.1936,2578.4,2577.9,0.1936]
[1750039846921,0.1936,2578.2,2577.7,7.1416]
[1750039847507,0.1936,2578.2,2577.7,7.1356]
[1750039847704,0.4592,2578.1,2577.7,0.1936]
[1750039847917,0.4592,2578.1,2577.3,15.83713554]
[1750039847918,0.48859956,2578.1,2577.3,15.83713554]
[1750039848103,0.02939956,2578.0,2577.2,0.8122]
[1750039848303,0.1936,2577.7,2577.3,7.1296]
[1750039850096,0.1936,2577.7,2577.4,6.926]
[1750039850643,0.1936,2577.7,2577.4,6.924]
[1750039852361,0.4592,2578.1,2577.5,0.03879422]
[1750039852852,0.4592,2578.1,2577.5,7.19810384]
[1750039852999,0.4592,2578.1,2577.5,8.62967422]
[1750039853198,11.186,2578.8,2577.5,8.62967422]
[1750039853199,0.4592,2578.4,2577.8,7.15930962]
[1750039853438,0.4592,2578.4,2577.9,6.94878607]
[1750039853962,0.4592,2578.7,2578.1,7.15930962]
[1750039854245,0.4592,2578.7,2578.2,0.0387826]
[1750039854948,0.4592,2578.7,2578.4,7.15930962]
[1750039855132,0.4592,2579.1,2578.5,0.03877972]
[1750039857063,0.48859956,2579.4,2578.5,0.03877972]
[1750039858141,0.21842521,2579.7,2578.5,0.03877972]
[1750039858142,0.48859956,2579.7,2578.8,10.0]
[1750039858339,0.48859956,2579.7,2578.9,6.93276934]
[1750039858769,1.85965952,2579.7,2579.0,6.894]
[1750039860089,1.85965952,2579.7,2578.6,0.8182]
[1750039860300,0.4592,2579.6,2578.0,0.8158]
[1750039860500,0.4592,2579.4,2578.1,6.93277938]
[1750039860706,0.4592,2579.4,2578.7,5.62073909]
[1750039860882,0.92703055,2580.0,2578.7,5.62073909]
[1750039860883,0.92703055,2580.3,2578.9,0.8158]
[1750039861082,0.48859956,2580.2,2579.2,3.8770779]
[1750039861483,0.48859956,2580.2,2579.3,6.93175943]
[1750039861687,0.48859956,2580.2,2579.3,8.14824985]
[1750039862226,0.1936,2580.0,2579.6,0.1936]
[1750039862427,0.1936,2580.0,2579.7,0.03875943]
[1750039865071,0.1936,2580.0,2579.6,0.1936]
[1750039865300,0.1936,2580.0,2579.7,0.03875912]
[1750039866217,0.4592,2580.4,2579.7,0.03875912]
[1750039866512,0.1936,2580.3,2579.9,0.1936]
[1750039866720,0.1936,2580.3,2579.7,0.03875519]
[1750039866886,0.4592,2580.1,2578.8,6.44163909]
[1750039867088,0.4592,2579.9,2578.8,2.05026069]
[1750039867287,0.4592,2579.7,2578.5,0.8209]
[1750039867489,0.02939956,2579.6,2579.0,0.5]
[1750039867794,2.00239956,2579.6,2578.7,6.92977462]
[1750039868620,2.00239956,2579.6,2578.7,6.891]
[1750039868796,0.4592,2579.5,2578.7,6.891]
[1750039869117,0.27555952,2579.4,2578.7,6.891]
[1750039869904,0.4592,2579.3,2578.2,0.8209]
[1750039870108,0.4592,2579.1,2578.4,6.891]
[1750039870281,0.02939956,2579.0,2578.4,6.891]
[1750039871277,0.02939956,2579.0,2578.0,5.62073909]
[1750039871510,0.02939956,2579.0,2578.1,6.891]
[1750039871902,0.02939956,2579.0,2578.0,6.264903]
[1750039871903,0.4592,2578.9,2577.8,0.8209]
[1750039872081,0.02939956,2578.8,2578.1,6.891]
[1750039872415,0.4592,2578.7,2578.0,6.891]
[1750039872594,0.02939956,2578.6,2578.0,6.891]
[1750039872793,0.02939956,2578.6,2578.0,6.92978571]
[1750039872993,0.4592,2578.7,2578.0,13.25083909]
[1750039873703,0.4592,2578.7,2578.0,7.6301]
[1750039874030,0.02939956,2578.6,2578.0,6.891]
[1750039874724,0.02939956,2578.6,2577.9,0.5]
[1750039874925,0.4592,2578.5,2577.9,0.5]